Cogmind - Beta 13 @@@ ROGUE MODE // 2024.06.14 @ 20:45:57 Player: monkeman Result: Destroyed by as-43406 with Assembled P-torch Performance ------------- Evolutions (7) 3500 Regions Visited (22) 4400 Robots Destroyed (246) 1230 Value Destroyed (8859) 8859 Prototype IDs (46) 920 Alien Tech Used (1) 200 Bonus (2872) 2872 TOTAL SCORE: 21981 Bonus ------- High Alert Combat Kills 592 Follower Combat Kills 1288 Entered DSFs 500 Network Hubs Disabled 200 Met Warlord at Base 500 MAIN.C Attacked Warlord 500 Warlord Defense Kills 248 Built Enhanced Grunts 300 A7 Reached Mainframe 300 Friendly Fire -1556 Cogmind --------- Core Integrity 0/1300 Matter 284/300 Energy 89/100 System Corruption 0% Temperature Cool (20) Movement Core (50) Location -3/Testing Parts ------- > --- POWER (2) -------- (None) > --- PROPULSION (6) --- (None) > --- UTILITY (9) ------ (None) > --- WEAPON (4) ------- (None) > --- INVENTORY (5) ---- Huge Storage Unit Advanced Signal Interpreter Long-range Tractor Beam Scatter Rocket Array Peak State ------------ > --- POWER ------------ Light Angular Momentum Engine Quantum Reactor > --- PROPULSION ------- Improved Medium Treads Centrium Heavy Treads Centrium Heavy Treads > --- UTILITY ---------- Advanced Heat Sink Huge Storage Unit Core Analyzer Centrium Medium Armor Plating Advanced Shield Generator Improved Hacking Suite Improved System Shield > --- WEAPON ----------- Wave Gun Flak Gun Advanced KE Penetrator > --- INVENTORY -------- Fission Core Antimatter Reactor Centrium Heavy Treads Compact Matter Pod Gravity Neutralizer Improved Sensor Array Advanced Sensor Array Advanced Signal Interpreter Improved Target Analyzer Particle Charger Advanced ECM Suite Centrium Medium Armor Plating Improved System Shield Long-range Tractor Beam Wave Gun Phase Cannon Flak Gun Flak Gun Heavy Machine Gun Magnetic Acceleration Cannon Magnetic Acceleration Cannon Antimatter Cannon Antimatter Cannon Scatter Rocket Array [Rating: 121] Favorites ----------- Power Improved Ion Engine Engine Improved Ion Engine Power Core Fission Core Reactor Antimatter Reactor Propulsion Light Treads Treads Light Treads Leg Carbon-fiber Leg Wheel Armored Wheel Flight Unit Q-thruster Utility Huge Storage Unit Device Advanced Heat Sink Storage Huge Storage Unit Processor Improved Target Analyzer Hackware Improved System Shield Protection Centrium Medium Armor Plating Weapon Improved Light Cannon Energy Gun Wave Gun Energy Cannon Phase Cannon Ballistic Gun Flak Gun Ballistic Cannon Improved Light Cannon Launcher Subdweller Shrapnel Launcher Build | -11 -10 -10 -8 -7 -7 -7 -7 -6 -6 -6 -6 -6 -6 -6 -5 -5 -5 -5 -4 -4 -3 -3 ------- Run | Yrd Mat Sub Mat Fac Was Fac DSF Fac Was Fac Ext Cet Arc Hub Fac Upp Upp War Pro Fac Res Tes Slots Evolved 14 | . . . 4 2 . . . 2 . . . . . . 2 . . . . 2 2 . Power 1 | . . . . . . . . . . . . . . . 1 . . . . . . . Propulsion 4 | . . . 2 . . . . 1 . . . . . . . . . . . 1 . . Utility 7 | . . . 2 2 . . . . . . . . . . 1 . . . . 1 1 . Weapon 2 | . . . . . . . . 1 . . . . . . . . . . . . 1 . Parts Attached 214 | 7 11 4 20 27 1 1 8 4 . 16 46 7 . 8 9 8 15 9 5 4 3 1 Power 18 | 1 1 . 2 2 . . 1 . . 2 2 1 . . 1 1 1 . 2 1 . . Engine 12 | 1 1 . 2 2 . . 1 . . 2 2 . . . 1 . . . . . . . Core 2 | . . . . . . . . . . . . . . . . 1 . . 1 . . . Reactor 4 | . . . . . . . . . . . . 1 . . . . 1 . 1 1 . . Propulsion 52 | 2 2 . 6 7 1 . 4 1 . 2 16 3 . 1 . . 2 2 1 1 1 . Treads 25 | . 2 . 6 6 . . . . . . 1 3 . 1 . . 2 2 1 1 . . Leg 24 | 2 . . . . . . 4 1 . 2 15 . . . . . . . . . . . Wheel 2 | . . . . 1 1 . . . . . . . . . . . . . . . . . Hover . | . . . . . . . . . . . . . . . . . . . . . . . Flight 1 | . . . . . . . . . . . . . . . . . . . . . 1 . Utility 81 | 2 3 1 5 12 . . 2 2 . 9 14 2 . 4 6 4 8 5 1 1 . . Device 40 | 1 . . 1 5 . . . 1 . 4 7 1 . 3 2 3 7 4 . 1 . . Storage 7 | 1 2 . 2 . . . . . . 1 . . . 1 . . . . . . . . Processor 8 | . . . 1 2 . . 1 1 . . 1 . . . 1 . 1 . . . . . Hackware 6 | . . . 1 1 . . . . . 1 2 . . . 1 . . . . . . . Protection 20 | . 1 1 . 4 . . 1 . . 3 4 1 . . 2 1 . 1 1 . . . Artifact . | . . . . . . . . . . . . . . . . . . . . . . . Weapon 63 | 2 5 3 7 6 . 1 1 1 . 3 14 1 . 3 2 3 4 2 1 1 2 1 Energy Gun 10 | 1 . . 2 2 . . . . . 1 2 . . . 1 . 1 . . . . . Energy Cannon 12 | . . 1 1 1 . . . 1 . . 3 . . . . 1 . 1 . 1 1 1 Ballistic Gun 21 | 1 . . 1 3 . 1 . . . . 7 1 . 1 1 1 3 . . . 1 . Ballistic Cannon 15 | . 3 1 1 . . . 1 . . 2 2 . . 2 . 1 . 1 1 . . . Launcher 5 | . 2 1 2 . . . . . . . . . . . . . . . . . . . Special Weapon . | . . . . . . . . . . . . . . . . . . . . . . . Impact Weapon . | . . . . . . . . . . . . . . . . . . . . . . . Slashing Weapon . | . . . . . . . . . . . . . . . . . . . . . . . Piercing Weapon . | . . . . . . . . . . . . . . . . . . . . . . . Special Melee Weapon . | . . . . . . . . . . . . . . . . . . . . . . . Unidentified Prototypes 10 | . . . . 1 . . . . . 1 . 2 . 2 . 1 1 1 . . 1 . Corrupted Parts 2 | . . . . . . . . . . . . . . 2 . . . . . . . . System Corruption 7 | . . . . . . . . . . . . . . 7 . . . . . . . . Parts Lost 84 | . . 3 4 10 5 . 1 1 2 1 30 1 . 1 3 . 9 . 4 7 1 1 Power 9 | . . . 2 1 1 . . . . . 1 . . . . . 2 . 1 1 . . Propulsion 32 | . . . 2 4 2 . . . 1 . 14 . . . . . 3 . 1 4 1 . Utility 19 | . . 1 . 1 2 . 1 1 . 1 4 . . 1 2 . 3 . 1 1 . . Weapon 24 | . . 2 . 4 . . . . 1 . 11 1 . . 1 . 1 . 1 1 . 1 Highest Loss Streak 7 | . . 2 2 2 4 . 1 1 2 1 5 1 . 1 1 . 7 . 2 6 1 1 To Critical Strikes 1 | . . . . . . . . . . . . . . . . . . . . 1 . . Average Slot Usage (%) 90 | . 99 99 96 94 83 38 66 82 88 96 96 87 86 83 85 87 79 82 90 82 1 2 Engine 6 | . 14 14 8 6 6 . . 6 6 6 5 2 . . 4 . . 4 3 . . . Reactor 1 | . . . . . . . . . . . . 3 6 6 5 5 4 5 5 6 . . Treads 17 | . 21 28 33 18 7 . . . . . . 17 20 20 17 17 15 11 20 21 . . Leg 5 | . 6 . . . . . 15 26 31 31 30 3 . . . . . . . . . . Device 8 | . 1 . 3 10 13 7 7 11 6 9 6 13 13 9 12 16 16 11 11 13 . . Storage 6 | . 14 14 9 6 6 . . . . 1 6 6 6 6 5 5 5 5 5 4 . . Processor 5 | . . . 5 4 . . . 2 6 6 7 6 6 6 6 5 7 11 11 9 . . Hackware 5 | . . . 8 6 7 7 7 6 6 11 12 6 6 6 5 5 5 5 5 4 . . Protection 7 | . 12 13 9 10 12 7 15 13 12 8 4 6 6 6 5 5 1 4 4 4 . . Energy Gun 3 | . . . 2 5 6 . . . . 5 4 6 6 6 4 1 1 5 5 4 . . Energy Cannon 2 | . . 9 5 2 . . . 1 5 . 3 . . . . 3 1 . . . . 2 Ballistic Gun 5 | . 1 . 3 15 9 7 7 6 5 . 7 5 6 4 9 7 7 4 . . . . Ballistic Cannon 7 | . 25 17 5 . . . 7 6 4 12 3 6 6 7 1 3 5 5 10 9 . . Naked Turns 122 | . . . . . . . . . . . . . . . . . . . . 32 69 21 Heaviest Build 146 | 14 40 48 104 123 118 9 35 44 43 57 66 70 70 133 140 146 144 129 138 139 10 10 Greatest Support 190 | 20 40 40 80 82 22 10 80 95 95 95 110 190 190 190 190 190 190 163 163 186 8 3 Greatest Overweight (x) 10 | . 1 1 1 10 9 . 2 . . . 1 . . 1 1 . 1 1 1 2 3 3 Average Overweight (x) . | . . . . 6 4 . 1 . . . . . . . . . . . . . . . Largest Inventory Capacity 25 | 8 15 15 25 25 25 5 5 5 5 15 15 15 15 25 25 25 25 25 25 25 5 5 Average Capacity 19 | 7 10 15 19 25 22 5 5 5 5 7 15 15 15 24 25 25 25 25 25 23 5 5 Most Carried 25 | 5 10 15 22 25 25 4 5 5 5 15 15 15 15 25 25 25 25 25 25 25 5 5 Average Carried 17 | 3 8 12 16 19 21 4 4 4 5 5 14 14 14 22 24 23 22 24 24 22 5 4 Final Capacity 25 | 8 15 15 25 25 5 5 5 5 5 15 15 15 15 25 25 25 25 25 25 5 5 5 Final Carried 25 | 5 10 15 21 25 5 4 5 5 5 15 15 15 15 25 25 25 25 25 25 5 5 4 Class Distribution -------------------- 32% | Mutant 23% | Scavenger-Tank 16% | Scavenger-Gunner 11% | Gunner 10% | Scavenger-Skirmisher 4% | Tank Dominant Class ---------------- Mutant | -10/Materials Mutant | -10/Subcaves Mutant | -8/Materials Gunner | -7/Factory Mutant | -7/Waste Mutant | -7/Factory Mutant | -7/DSF Mutant | -6/Factory Gunner | -6/Waste Scavenger-Gunner | -6/Factory Scavenger-Gunner | -6/Extension Scavenger-Tank | -6/Cetus Scavenger-Tank | -6/Archives Scavenger-Tank | -6/Hub_04(d) Scavenger-Tank | -5/Factory Scavenger-Tank | -5/Upper Caves Scavenger-Skirmisher | -5/Upper Caves Scavenger-Skirmisher | -5/Warlord Scavenger-Tank | -4/Proximity Caves Scavenger-Tank | -4/Factory Mutant | -3/Research Mutant | -3/Testing Resources | -11 -10 -10 -8 -7 -7 -7 -7 -6 -6 -6 -6 -6 -6 -6 -5 -5 -5 -5 -4 -4 -3 -3 ----------- Run | Yrd Mat Sub Mat Fac Was Fac DSF Fac Was Fac Ext Cet Arc Hub Fac Upp Upp War Pro Fac Res Tes Matter Collected 7784 | 203 219 333 685 1122 . . 53 194 . 509 1422 164 85 371 428 357 749 500 317 63 10 . Remotely 358 | . . . . . . . . . . . . . . . . . . 358 . . . . Salvage Created 9165 | 21 267 318 1285 1809 . . 37 85 . 482 2301 55 34 875 604 92 363 133 339 65 . . Parts 519 | 3 39 16 70 103 . . 4 12 . 28 114 5 5 49 25 7 19 4 12 4 . . Haulers Intercepted 9 | . 1 . 2 1 . . . . . 1 . . . 3 1 . . . . . . . Recyclers Shooed 10 | . 1 . 2 1 . . . . . . 5 . . . 1 . . . . . . . Parts Field Recycled . | . . . . . . . . . . . . . . . . . . . . . . . Retrieved Matter . | . . . . . . . . . . . . . . . . . . . . . . . Parts Self-Destructed 50 | . . 9 . . . . . . . . . . . . . 7 19 . 15 . . . Prevented 2 | . . . . . . . . . . . . . . . . . 2 . . . . . Kills | -11 -10 -10 -8 -7 -7 -7 -7 -6 -6 -6 -6 -6 -6 -6 -5 -5 -5 -5 -4 -4 -3 -3 ------- Run | Yrd Mat Sub Mat Fac Was Fac DSF Fac Was Fac Ext Cet Arc Hub Fac Upp Upp War Pro Fac Res Tes Combat Hostiles Destroyed 173 | . 11 13 23 27 . . 1 5 . 9 30 1 . 2 16 5 16 2 11 1 . . Melee 1 | . . . . . . . . . . . . . . . 1 . . . . . . . Guns 74 | . . . 6 22 . . . . . 2 16 . . 1 13 2 8 1 2 1 . . Cannons 73 | . 5 8 8 5 . . 1 3 . 6 14 1 . 1 . 3 8 1 9 . . . AOE 23 | . 6 5 7 . . . . 2 . 1 . . . . 2 . . . . . . . Classes Destroyed 21 | 1 6 3 3 2 . . . . . . 2 . . . 1 . 1 2 . . . . Worker 13 | . . . 2 3 . . . . . 1 2 . . 5 . . . . . . . . Builder 13 | . 1 . 1 2 . . . . . . 5 . . 4 . . . . . . . . Tunneler 1 | 1 . . . . . . . . . . . . . . . . . . . . . . Hauler 9 | . 1 . 2 1 . . . . . 1 . . . 3 1 . . . . . . . Recycler 10 | . . . 3 2 . . . . . . 5 . . . . . . . . . . . Minesweeper 1 | . . . . . . . . . . . . . . . . . 1 . . . . . Operator 9 | . 2 . 2 . . . . . . 1 2 . 2 . . . . . . . . . Watcher 12 | . 3 . 3 2 . . . . . 1 3 . . . . . . . . . . . Swarmer 48 | . 6 3 5 . . . . 4 . . 3 . . . 8 5 9 . 5 . . . Saboteur 1 | . . . . . . . . . . . . . . . 1 . . . . . . . Grunt 61 | . 5 5 10 10 . . . . . 5 12 . . . 4 . 5 1 4 . . . Brawler 1 | . . . . . . . . . . . . . . . . . . 1 . . . . Duelist 2 | . . . . . . . . . . . 2 . . . . . . . . . . . Sentry 32 | . . 1 6 5 . . . 1 . 2 8 . . 2 2 . 2 . 2 1 . . Specialist 3 | . . . . 2 . . 1 . . . . . . . . . . . . . . . Hunter 6 | . . . 2 1 . . . . . . 3 . . . . . . . . . . . Programmer 12 | . . . . 9 . . . . . 2 . . . . 1 . . . . . . . Behemoth 2 | . . . . . . . . . . . 2 . . . . . . . . . . . Cetus Guard 1 | . . . . . . . . . . . . 1 . . . . . . . . . . Enhanced Grunt 3 | . . . . . . . . . . . . . . 3 . . . . . . . . Artisan 1 | . . 1 . . . . . . . . . . . . . . . . . . . . Subdweller 4 | . . 4 . . . . . . . . . . . . . . . . . . . . Packrat 1 | . . . . . . . . . . . . . . . . 1 . . . . . . Guerrilla 1 | . . . . . . . . . . . . . . 1 . . . . . . . . Mutant 1 | . . . . . . . . . . . . . . . . . . 1 . . . . Best Kill Streak 12 | 1 4 3 9 6 . . 1 5 . 3 12 1 2 4 4 5 11 2 4 1 . . Combat Bots Only 11 | . 3 3 5 3 . . 1 5 . 3 7 1 . 1 4 5 11 2 4 1 . . Max Kills in Single Turn 6 | 1 2 2 3 2 . . 1 3 . 1 2 1 1 6 2 1 1 2 2 1 . . Gunslinging . | . . . . . . . . . . . . . . . . . . . . . . . Exploded 3 | . 2 2 3 . . . . 2 . 1 . . . . 1 . . . . . . . Melee 1 | . . . . . . . . . . . . . . . 1 . . . . . . . Uniques/NPCs Destroyed . | . . . . . . . . . . . . . . . . . . . . . . . Combat | -11 -10 -10 -8 -7 -7 -7 -7 -6 -6 -6 -6 -6 -6 -6 -5 -5 -5 -5 -4 -4 -3 -3 -------- Run | Yrd Mat Sub Mat Fac Was Fac DSF Fac Was Fac Ext Cet Arc Hub Fac Upp Upp War Pro Fac Res Tes Hostile Shots Fired 1834 | . 32 88 113 332 5 . 10 63 2 110 363 14 . 55 133 49 175 34 92 45 106 13 Missed 529 | . 8 33 27 106 1 . . 23 . 38 102 6 . 15 27 12 31 13 30 14 36 7 Damage Taken 18864 | . 235 889 1277 2460 142 . 218 307 63 980 3629 193 20 477 1621 391 2082 573 990 769 1418 130 Core 3005 | . 37 152 74 217 41 . 118 36 . 45 412 . . 5 33 53 150 85 43 194 1216 94 Absorbed by Shields 1395 | . . . . . . . . . . . 62 60 . . 530 151 545 47 . . . . Reduced by Siege Mode 71 | . . . . . . . . . . . . . . . 39 15 17 . . . . . Ignored by Resistances 583 | . . . . 165 7 . 41 80 7 . . . . . . . . 12 149 122 . . Regen/Repaired (Parts) 662 | . . . . 145 . . . . . . . . . . . . . 517 . . . . Core Remaining (%) 63 | 100 . 24 86 . . . 46 . . . . . . 41 . . . . 63 83 . . Volleys Fired 609 | 2 37 48 94 90 . . 4 7 . 39 111 5 7 13 50 17 49 6 22 3 4 1 Largest 4 | 2 2 2 2 4 . . 2 3 . 3 3 3 3 3 3 3 3 3 3 3 1 1 Hottest 203 | 70 78 119 119 171 . . 76 141 . 166 203 197 156 168 150 160 153 161 174 174 81 81 Shots Fired 1515 | 4 67 74 171 295 . . 8 21 . 83 307 15 21 42 147 42 124 18 64 7 4 1 Gun 883 | 4 2 . 85 249 . . 4 7 . 26 191 10 14 27 137 20 75 6 21 2 3 . Cannon 617 | . 59 70 81 46 . . 4 14 . 57 116 5 7 15 10 22 49 12 43 5 1 1 Launcher 15 | . 6 4 5 . . . . . . . . . . . . . . . . . . . Special . | . . . . . . . . . . . . . . . . . . . . . . . Kinetic 997 | 2 60 51 94 194 . . 8 14 . 57 168 8 14 29 99 29 108 12 43 4 3 . Thermal 400 | 2 1 23 4 65 . . . 7 . 26 139 7 7 13 48 13 16 6 21 2 . . Explosive 6 | . 6 . . . . . . . . . . . . . . . . . . . . . Electromagnetic 111 | . . . 73 36 . . . . . . . . . . . . . . . . 1 1 Entropic 1 | . . . . . . . . . . . . . . . . . . . . 1 . . Robot Hit Streak 36 | 3 6 12 8 36 . . 3 10 . 11 14 7 8 21 36 12 6 3 9 15 16 . Robot Miss Streak 11 | . 4 3 5 3 . . 6 6 . 3 8 3 7 3 11 6 8 6 5 . . . Penetration Max 2 | . . . . 1 . . . . . . 2 . . 1 . . . . . . . . Secondary Targets 6 | . . . 1 2 . . . . . . 2 . . . 1 . . . . . . . Max Gunslinging Chain 1 | . . . 1 1 . . . . . . 1 . . . 1 . . . . . . . Shots Hit Robots 958 | 3 33 44 102 211 . . 6 16 . 48 202 13 16 28 91 21 73 6 40 4 1 . Core Hits 636 | 1 21 19 50 68 . . 2 13 . 24 204 7 16 34 72 20 43 5 32 3 1 1 Critical Kills 9 | . . . . 1 . . . . . . 6 . . 1 1 . . . . . . . Critical Parts Destroyed 12 | . . . . 3 . . . . . . 3 . . 1 2 . 3 . . . . . Critical Strikes 58 | . . 2 4 5 . . . 1 . 1 16 1 1 3 7 2 7 3 4 1 . . Burn 8 | . . . . . . . . . . . 2 1 . 1 3 . . . 1 . . . Destroy 22 | . . . . 4 . . . . . . 9 . . 2 3 . 4 . . . . . Blast 26 | . . 2 3 . . . . 1 . 1 5 . 1 . 1 2 3 3 3 1 . . Corrupt 2 | . . . 1 1 . . . . . . . . . . . . . . . . . . Melee Attacks . | . . . . . . . . . . . . . . . . . . . . . . . Impact . | . . . . . . . . . . . . . . . . . . . . . . . Slashing . | . . . . . . . . . . . . . . . . . . . . . . . Piercing . | . . . . . . . . . . . . . . . . . . . . . . . Sneak Attacks . | . . . . . . . . . . . . . . . . . . . . . . . Combat Hostiles . | . . . . . . . . . . . . . . . . . . . . . . . Follow-up Attacks . | . . . . . . . . . . . . . . . . . . . . . . . Damage Inflicted 26503 | 34 1106 1376 2993 4659 . . 116 523 . 1430 5191 349 364 1365 2633 547 2112 354 1155 142 53 1 Guns 12696 | 34 13 . 907 3870 . . 31 122 . 391 2786 191 206 467 2073 208 963 71 289 49 25 . Cannons 10848 | . 714 1012 1266 743 . . 85 293 . 876 2405 158 158 215 205 339 1149 283 866 81 . . Explosions 2629 | . 358 364 820 . . . . 108 . 163 . . . 507 309 . . . . . . . Melee . | . . . . . . . . . . . . . . . . . . . . . . . Ramming 330 | . 21 . . 46 . . . . . . . . . 176 46 . . . . 12 28 1 Kinetic 16750 | 9 714 963 1848 3195 . . 116 280 . 876 2646 224 255 466 1601 369 1933 283 866 81 25 . Thermal 6893 | 25 13 413 55 951 . . . 135 . 554 2545 125 109 216 986 178 179 71 289 49 . . Explosive 466 | . 358 . . . . . . 108 . . . . . . . . . . . . . . Electromagnetic 2064 | . . . 1090 467 . . . . . . . . . 507 . . . . . . . . Impact . | . . . . . . . . . . . . . . . . . . . . . . . Slashing . | . . . . . . . . . . . . . . . . . . . . . . . Piercing . | . . . . . . . . . . . . . . . . . . . . . . . Highest Corruption 17 | . . . . 8 17 17 17 . 5 9 9 4 4 11 15 15 15 15 . 1 . . Average Corruption 8 | . . . . 5 15 17 17 . 5 5 4 4 4 4 13 15 15 15 . 1 . . Corruption Purged 5 | . . . . . . . . . . . 5 . . . . . . . . . . . Corruption Blocked 15 | . . . . . . . . . . . . . . . . . . . . . . 15 Effects 308 | . . . . 59 4 2 4 . 2 26 45 10 4 12 28 40 67 5 . . . . Message Errors 78 | . . . . 14 2 . . . 1 9 8 1 2 3 9 10 19 . . . . . Matter Fused 70 | . . . . 15 1 . 3 . . 7 10 2 1 3 4 8 14 2 . . . . Heat Flow Errors 31 | . . . . 7 1 . . . . 3 3 1 1 1 2 6 6 . . . . . Energy Discharges 33 | . . . . 4 . . . . . . 7 4 . . 3 5 8 2 . . . . Parts Rejected 1 | . . . . 1 . . . . . . . . . . . . . . . . . . Data Loss (minor) 40 | . . . . 9 . . . . . 2 7 1 . 2 4 5 10 . . . . . Data Loss (major) 9 | . . . . . . 1 . . 1 2 1 1 . . . 1 2 . . . . . Misfires 15 | . . . . 1 . . . . . 1 2 . . 3 1 3 3 1 . . . . Alerts 11 | . . . . 4 . 1 1 . . . 3 . . . 1 . 1 . . . . . Weapon Failures 20 | . . . . 4 . . . . . 2 4 . . . 4 2 4 . . . . . Overload Shots . | . . . . . . . . . . . . . . . . . . . . . . . Overflow Damage 409 | . 22 38 137 13 . . . . . 16 31 . 17 14 59 29 33 . . . . . Projectiles 186 | . 17 . 35 12 . . . . . . 31 . 17 . 12 29 33 . . . . . Explosions 202 | . 5 38 102 . . . . . . 16 . . . . 41 . . . . . . . Melee 21 | . . . . 1 . . . . . . . . . 14 6 . . . . . . . Knockbacks 61 | . 10 6 2 . . . 2 . . 3 7 1 2 . 2 1 11 4 9 . 1 . Impact 1 | . . . . . . . . . . . . . . . . . . . . . 1 . Kinetic 57 | . 9 6 2 . . . 2 . . 3 5 1 2 . 2 1 11 4 9 . . . Secondary 3 | . 1 . . . . . . . . . 2 . . . . . . . . . . . Self-Inflicted Damage 383 | . . . 28 . . . . . . . . . . 107 229 . . . . 6 13 . Shots 5 | . . . 1 . . . . . . . . . . 1 3 . . . . . . . Rammed 32 | . 3 . . 6 . . . . . . . . . 12 1 . . . . 2 5 3 Targets Rammed 34 | . 3 . 1 6 . . . . . . . . . 13 1 . . . . 2 5 3 Kicked . | . . . . . . . . . . . . . . . . . . . . . . . Crushed 2 | . . . 1 . . . . . . . . . . 1 . . . . . . . . Highest Temperature 457 | 60 132 50 338 210 101 . 3 184 . 378 446 195 149 96 278 243 457 156 337 48 . . Average Temperature 92 | 30 49 21 97 99 57 . 3 107 . 106 81 37 78 25 59 75 186 62 114 21 . . Received Heat Transfer 4335 | . 90 189 576 627 . . 54 42 . 327 1011 13 . 105 320 . 396 114 229 63 99 80 Effects 25 | . . . 2 . . . . . . 3 2 . . . 1 . 16 . 1 . . . Shutdowns 7 | . . . 1 . . . . . . 1 . . . . . . 4 . 1 . . . Energy Bleed 2 | . . . . . . . . . . . . . . . . . 2 . . . . . Interference 11 | . . . . . . . . . . 1 2 . . . 1 . 7 . . . . . Matter Decay 2 | . . . . . . . . . . . . . . . . . 2 . . . . . Short Circuit 2 | . . . 1 . . . . . . 1 . . . . . . . . . . . . Damage (minor) 1 | . . . . . . . . . . . . . . . . . 1 . . . . . Siege Activations 4 | . . . . . . . . . . . . . . . 2 1 1 . . . . . Total Turns 93 | . . . . . . . . . . . . . . . 64 9 20 . . . . . Longest Duration 40 | . . . . . . . . . . . . . . . 40 9 20 . . . . . Robots Corrupted 4 | . . . 2 . . . . . . . . . . 2 . . . . . . . . Combat Hostiles 2 | . . . 2 . . . . . . . . . . . . . . . . . . . Parts Fried 12 | . . . 7 1 . . . . . . . . . 4 . . . . . . . . Impact Corruptions 4 | . 1 . . 1 . . . . . . . . . 1 1 . . . . . . . Robots Melted . | . . . . . . . . . . . . . . . . . . . . . . . Combat Hostiles . | . . . . . . . . . . . . . . . . . . . . . . . Parts Melted 9 | . . 1 . 2 . . . . . . 3 . . . 2 . . . 1 . . . Heat Transferred 11032 | 74 37 555 74 1517 . . . 185 . 729 3774 374 250 600 1679 222 259 111 518 74 . . Parts Sabotaged 2 | . . . . . . . . . . . . . . . 2 . . . . . . . Parts Stolen . | . . . . . . . . . . . . . . . . . . . . . . . Parts Stripped . | . . . . . . . . . . . . . . . . . . . . . . . Power Chain Reactions . | . . . . . . . . . . . . . . . . . . . . . . . Alert | -11 -10 -10 -8 -7 -7 -7 -7 -6 -6 -6 -6 -6 -6 -6 -5 -5 -5 -5 -4 -4 -3 -3 ------- Run | Yrd Mat Sub Mat Fac Was Fac DSF Fac Was Fac Ext Cet Arc Hub Fac Upp Upp War Pro Fac Res Tes Peak Influence 1197 | 5 283 . 697 500 84 30 49 196 83 328 455 305 309 1197 1121 . . . . 129 65 51 Initial 585 | . 3 . 195 278 64 30 24 25 68 44 102 207 42 107 585 . . . . 50 45 36 Average 305 | 1 147 . 383 237 60 30 30 61 76 203 284 255 260 798 841 . . . . 90 51 42 Maximum Alert Level 4 | . 1 . 2 2 . . . . . 1 2 1 1 4 4 . . . . . . . Low Security (%) 40 | 100 74 . 22 44 100 100 100 100 100 41 27 16 15 10 . . . . . 100 100 100 Level 1 37 | . 25 . 40 39 . . . . . 58 61 83 84 5 . . . . . . . . Level 2 12 | . . . 37 15 . . . . . . 10 . . 7 26 . . . . . . . Level 3 7 | . . . . . . . . . . . . . . 65 70 . . . . . . . Level 4 . | . . . . . . . . . . . . . . 11 3 . . . . . . . Level 5 . | . . . . . . . . . . . . . . . . . . . . . . . High Security . | . . . . . . . . . . . . . . . . . . . . . . . Max Security . | . . . . . . . . . . . . . . . . . . . . . . . Squads Dispatched 44 | . 2 . 6 14 . . . . . 4 4 . . 6 4 . . . . 1 1 2 Investigation 6 | . . . 2 2 . . . . . 1 1 . . . . . . . . . . . Extermination 10 | . . . . 6 . . . . . 2 . . . . 1 . . . . 1 . . Reinforcement 19 | . 2 . 3 3 . . . . . 1 3 . . 3 1 . . . . . 1 2 Assault 3 | . . . 1 . . . . . . . . . . . 2 . . . . . . . Garrison 6 | . . . . 3 . . . . . . . . . 3 . . . . . . . . Intercept . | . . . . . . . . . . . . . . . . . . . . . . . Searches Triggered . | . . . . . . . . . . . . . . . . . . . . . . . Construction Impeded 1 | . . . . . . . . . . . 1 . . . . . . . . . . . Haulers Reinforced 4 | . . . . . . . . . . . . . . 3 1 . . . . . . . Active Scanning Responses . | . . . . . . . . . . . . . . . . . . . . . . . Cargo Convoy Interrupts 1 | . . . . 1 . . . . . . . . . . . . . . . . . . Stealth | -11 -10 -10 -8 -7 -7 -7 -7 -6 -6 -6 -6 -6 -6 -6 -5 -5 -5 -5 -4 -4 -3 -3 --------- Run | Yrd Mat Sub Mat Fac Was Fac DSF Fac Was Fac Ext Cet Arc Hub Fac Upp Upp War Pro Fac Res Tes Distress Signals 15 | . 1 . 5 3 . . . . . 1 2 1 . 1 . . . 1 . . . . Communications Jammed . | . . . . . . . . . . . . . . . . . . . . . . . Distress Signals . | . . . . . . . . . . . . . . . . . . . . . . . Times Spotted 332 | . 20 19 46 36 5 . 2 5 5 15 48 5 9 11 23 5 21 17 15 6 15 4 Peak Tracking Total 13 | . 3 6 7 5 5 . 1 4 5 4 8 5 2 5 7 5 12 8 4 5 13 3 Tactical Retreats 22 | . . 1 3 . . . 1 . . 1 5 . . 1 3 . 4 . 2 . 1 . Traps | -11 -10 -10 -8 -7 -7 -7 -7 -6 -6 -6 -6 -6 -6 -6 -5 -5 -5 -5 -4 -4 -3 -3 ------- Run | Yrd Mat Sub Mat Fac Was Fac DSF Fac Was Fac Ext Cet Arc Hub Fac Upp Upp War Pro Fac Res Tes Traps Triggered 16 | . . 4 . 4 . . . 1 . 3 . . . . 3 . . . . . . 1 Indirectly . | . . . . . . . . . . . . . . . . . . . . . . . Trap Hack Attempts . | . . . . . . . . . . . . . . . . . . . . . . . Triggered . | . . . . . . . . . . . . . . . . . . . . . . . Disarmed . | . . . . . . . . . . . . . . . . . . . . . . . Reprogrammed 6 | . . . . . . . . . . . 6 . . . . . . . . . . . Reused 2 | . . . . . . . . . . . . . . . . . 2 . . . . . Traps Extracted . | . . . . . . . . . . . . . . . . . . . . . . . Installed 2 | . . . . . . . . . . . . . . . . . 2 . . . . . Triggered 15 | . . . . 1 . . . . . . . . . . . . 3 11 . . . . Machines | -11 -10 -10 -8 -7 -7 -7 -7 -6 -6 -6 -6 -6 -6 -6 -5 -5 -5 -5 -4 -4 -3 -3 ---------- Run | Yrd Mat Sub Mat Fac Was Fac DSF Fac Was Fac Ext Cet Arc Hub Fac Upp Upp War Pro Fac Res Tes Machines Disabled 48 | . 4 2 4 3 . . . 2 . 8 1 . 3 10 6 1 2 . 1 . . 1 Max in Single Turn 8 | . 2 1 1 1 . . . 2 . 8 1 . 1 6 2 1 1 . 1 . . 1 Network Hub 1 | . . . . . . . . . . . . . . 1 . . . . . . . . Machines Repaired . | . . . . . . . . . . . . . . . . . . . . . . . Machines Dismantled . | . . . . . . . . . . . . . . . . . . . . . . . Machines Sabotaged . | . . . . . . . . . . . . . . . . . . . . . . . Overloaded Fab Kills . | . . . . . . . . . . . . . . . . . . . . . . . Hacking | -11 -10 -10 -8 -7 -7 -7 -7 -6 -6 -6 -6 -6 -6 -6 -5 -5 -5 -5 -4 -4 -3 -3 --------- Run | Yrd Mat Sub Mat Fac Was Fac DSF Fac Was Fac Ext Cet Arc Hub Fac Upp Upp War Pro Fac Res Tes Machines Accessed 68 | . 7 1 6 13 . 1 . . . 7 14 3 . 3 2 1 2 5 1 1 1 . Terminals 47 | . 6 . 5 6 . 1 . . . 6 13 3 . 2 2 . 1 . 1 1 . . Fabricators 2 | . . . . 1 . . . . . . . . . . . . . . . . 1 . Repair Stations 2 | . . . . 2 . . . . . . . . . . . . . . . . . . Recycling Units 3 | . 1 . . 1 . . . . . . 1 . . . . . . . . . . . Scanalyzers 4 | . . . 1 2 . . . . . 1 . . . . . . . . . . . . Garrison Access 2 | . . . . 1 . . . . . . . . . 1 . . . . . . . . Total Hacks 227 | . 25 1 20 39 . 3 . . . 18 44 11 . 15 18 1 6 16 7 2 1 . Successful 119 | . 9 1 11 21 . 1 . . . 9 19 4 . 4 9 1 6 16 7 1 . . Failed 108 | . 16 . 9 18 . 2 . . . 9 25 7 . 11 9 . . . . 1 1 . Catastrophic 19 | . 3 . 1 4 . . . . . 2 1 2 . 1 4 . . . . . 1 . Database Lockouts . | . . . . . . . . . . . . . . . . . . . . . . . Manual 49 | . 8 . 9 12 . . . . . 2 6 1 . 1 8 . . . . 2 . . Terminals 176 | . 22 . 17 23 . 3 . . . 12 43 11 . 13 18 . 5 . 7 2 . . Fabricators 3 | . . . . 2 . . . . . . . . . . . . . . . . 1 . Repair Stations 5 | . . . . 5 . . . . . . . . . . . . . . . . . . Recycling Units 5 | . 3 . . 1 . . . . . . 1 . . . . . . . . . . . Scanalyzers 15 | . . . 3 6 . . . . . 6 . . . . . . . . . . . . Garrison Access 4 | . . . . 2 . . . . . . . . . 2 . . . . . . . . Terminal Hacks 87 | . 6 1 6 9 . 1 . . . 3 16 4 . 3 8 1 6 16 7 . . . Record 32 | . . . . 1 . . . . . 1 2 3 . . 2 1 5 10 7 . . . Part Schematic 7 | . 1 . 1 . . . . . . . 2 . . 2 1 . . . . . . . Robot Schematic 1 | . . . . . . . . . . 1 . . . . . . . . . . . . Robot Analysis 6 | . 3 . 1 1 . . . . . . . . . . 1 . . . . . . . Prototype ID Bank 13 | . 1 . 3 1 . . . . . . 2 . . 1 . . . 5 . . . . Open Door 9 | . . . . . . . . . . . 6 1 . . . . 1 1 . . . . Open DSF 1 | . . . . . . 1 . . . . . . . . . . . . . . . . Branch Access Points 2 | . . . . . . . . . . 1 . . . . 1 . . . . . . . Emergency Access Points 1 | . . . . . . . . . . . . . . . 1 . . . . . . . Terminal Index 1 | . . . . 1 . . . . . . . . . . . . . . . . . . Unreport Threat 2 | . . . . 2 . . . . . . . . . . . . . . . . . . Locate Traps 5 | . 1 . . 1 . . . . . . 2 . . . 1 . . . . . . . Reprogram Traps 1 | . . . . . . . . . . . 1 . . . . . . . . . . . Hauler Manifests 2 | . . . 1 . . . . . . . 1 . . . . . . . . . . . Zone Layout 3 | . . . . 2 . . . . . . . . . . 1 . . . . . . . Derelict Proto ID Bank 1 | . . 1 . . . . . . . . . . . . . . . . . . . . Fabricator Hacks 1 | . . . . 1 . . . . . . . . . . . . . . . . . . Build 1 | . . . . 1 . . . . . . . . . . . . . . . . . . Repair Station Hacks 2 | . . . . 2 . . . . . . . . . . . . . . . . . . Scan Component 1 | . . . . 1 . . . . . . . . . . . . . . . . . . Repair 1 | . . . . 1 . . . . . . . . . . . . . . . . . . Recycling Unit Hacks 4 | . 3 . . . . . . . . . 1 . . . . . . . . . . . Process 1 | . 1 . . . . . . . . . . . . . . . . . . . . . Report Inventory 2 | . 1 . . . . . . . . . 1 . . . . . . . . . . . Retrieve Matter 1 | . 1 . . . . . . . . . . . . . . . . . . . . . Scanalyzer 14 | . . . 3 6 . . . . . 5 . . . . . . . . . . . . Insert Component 7 | . . . 1 3 . . . . . 3 . . . . . . . . . . . . Analyze 7 | . . . 2 3 . . . . . 2 . . . . . . . . . . . . Garrison Access Hacks . | . . . . . . . . . . . . . . . . . . . . . . . Unauthorized Hacks 11 | . . . 2 3 . . . . . 1 2 . . 1 1 . . . . 1 . . Terminals 10 | . . . 2 2 . . . . . 1 2 . . 1 1 . . . . 1 . . Botnet 10 | . . . 2 2 . . . . . 1 2 . . 1 1 . . . . 1 . . Fabricators 1 | . . . . 1 . . . . . . . . . . . . . . . . . . Fabnet 1 | . . . . 1 . . . . . . . . . . . . . . . . . . Repair Stations . | . . . . . . . . . . . . . . . . . . . . . . . Recycling Units . | . . . . . . . . . . . . . . . . . . . . . . . Scanalyzers . | . . . . . . . . . . . . . . . . . . . . . . . Garrison Access . | . . . . . . . . . . . . . . . . . . . . . . . Data Cores Recovered 1 | . . . . . . . . . . 1 . . . . . . . . . . . . Used . | . . . . . . . . . . . . . . . . . . . . . . . Hacking Detections 53 | . 7 . 5 12 . . . . . 7 11 3 . 3 2 . 1 . . 1 1 . Full Trace Events 5 | . 2 . 2 . . . . . . . 1 . . . . . . . . . . . Feedback Events . | . . . . . . . . . . . . . . . . . . . . . . . Feedback Blocked 1 | . . . . . . . . . . . 1 . . . . . . . . . . . Robot Schematics Acquired 1 | . . . . . . . . . . 1 . . . . . . . . . . . . Robots Built . | . . . . . . . . . . . . . . . . . . . . . . . Authchips . | . . . . . . . . . . . . . . . . . . . . . . . Time . | . . . . . . . . . . . . . . . . . . . . . . . Total Robot Build Rating . | . . . . . . . . . . . . . . . . . . . . . . . Part Schematics Acquired 13 | . 1 . 2 3 . . . . . 2 2 . . 2 1 . . . . . . . Parts Built 1 | . . . . 1 . . . . . . . . . . . . . . . . . . Authchips . | . . . . . . . . . . . . . . . . . . . . . . . Time 95 | . . . . 95 . . . . . . . . . . . . . . . . . . Total Part Build Rating 5 | . . . . 5 . . . . . . . . . . . . . . . . . . Parts Repaired 1 | . . . . 1 . . . . . . . . . . . . . . . . . . Time 19 | . . . . 19 . . . . . . . . . . . . . . . . . . Parts Recycled . | . . . . . . . . . . . . . . . . . . . . . . . Recycled Matter 143 | . 143 . . . . . . . . . . . . . . . . . . . . . Retrieved Matter 171 | . 171 . . . . . . . . . . . . . . . . . . . . . Retrieved Components . | . . . . . . . . . . . . . . . . . . . . . . . Parts Scanalyzed 6 | . . . 1 3 . . . . . 2 . . . . . . . . . . . . Part Schematics Acquired 6 | . . . 1 3 . . . . . 2 . . . . . . . . . . . . Parts Damaged 1 | . . . . . . . . . . 1 . . . . . . . . . . . . Bothacking | -11 -10 -10 -8 -7 -7 -7 -7 -6 -6 -6 -6 -6 -6 -6 -5 -5 -5 -5 -4 -4 -3 -3 ------------ Run | Yrd Mat Sub Mat Fac Was Fac DSF Fac Was Fac Ext Cet Arc Hub Fac Upp Upp War Pro Fac Res Tes Used RIF Installer . | . . . . . . . . . . . . . . . . . . . . . . . Robots Hacked . | . . . . . . . . . . . . . . . . . . . . . . . Non-combat . | . . . . . . . . . . . . . . . . . . . . . . . Combat . | . . . . . . . . . . . . . . . . . . . . . . . Robot Hacks Applied . | . . . . . . . . . . . . . . . . . . . . . . . Relay Couplers Released 4 | . . . . 4 . . . . . . . . . . . . . . . . . . Programmers 4 | . . . . 4 . . . . . . . . . . . . . . . . . . Fabnet Peak Effective % . | . . . . . . . . . . . . . . . . . . . . . . . Robots Rewired 12 | . . . . . . . . . . . 7 . . . . . . 5 . . . . Allies Hacked . | . . . . . . . . . . . . . . . . . . . . . . . Hacks Repelled . | . . . . . . . . . . . . . . . . . . . . . . . Allies | -11 -10 -10 -8 -7 -7 -7 -7 -6 -6 -6 -6 -6 -6 -6 -5 -5 -5 -5 -4 -4 -3 -3 -------- Run | Yrd Mat Sub Mat Fac Was Fac DSF Fac Was Fac Ext Cet Arc Hub Fac Upp Upp War Pro Fac Res Tes Total Allies 24 | . . . . . . . . . . . 14 5 . . . . . 5 . . . . Largest Group 11 | . . . . . . . . . . . 11 8 8 7 . . . 5 1 . . . Highest-Rated Group 700 | . . . . . . . . . . . 431 700 700 541 . . . 266 49 . . . Highest-Rated Ally 159 | . . . . . . . . . . . 159 159 159 96 . . . 68 49 . . . Total Orders . | . . . . . . . . . . . . . . . . . . . . . . . Ally Attacks 137 | . . . . . . . . . . . 31 27 18 44 . . . 9 8 . . . Total Damage 4394 | . . . . . . . . . . . 807 643 610 1621 . . . 447 266 . . . Kills 35 | . . . . . . . . . . . 3 6 5 17 . . . 2 2 . . . Allies Corrupted 2 | . . . . . . . . . . . . . . 2 . . . . . . . . Allies Melted . | . . . . . . . . . . . . . . . . . . . . . . . Intel | -11 -10 -10 -8 -7 -7 -7 -7 -6 -6 -6 -6 -6 -6 -6 -5 -5 -5 -5 -4 -4 -3 -3 ------- Run | Yrd Mat Sub Mat Fac Was Fac DSF Fac Was Fac Ext Cet Arc Hub Fac Upp Upp War Pro Fac Res Tes Robot Analysis Total 6 | . 3 . 1 1 . . . . . . . . . . 1 . . . . . . . Derelict Logs Recovered 5 | . . 2 . . . . . . . . . . . . . 1 1 . 1 . . . Drone Launches . | . . . . . . . . . . . . . . . . . . . . . . . Drone Recoveries . | . . . . . . . . . . . . . . . . . . . . . . . Exploration | -11 -10 -10 -8 -7 -7 -7 -7 -6 -6 -6 -6 -6 -6 -6 -5 -5 -5 -5 -4 -4 -3 -3 ------------- Run | Yrd Mat Sub Mat Fac Was Fac DSF Fac Was Fac Ext Cet Arc Hub Fac Upp Upp War Pro Fac Res Tes Turns Passed 18711 | 77 1238 2131 1677 2935 98 43 89 205 100 981 1867 480 189 597 780 893 1558 1221 1050 367 94 41 Spaces Moved 9500 | 52 681 963 736 1084 67 52 52 135 83 691 1116 229 102 312 338 514 777 491 584 245 150 46 Core 243 | 9 . . . . . . . . . . . . . . . . . . . 57 131 46 Treads 6155 | . 551 963 736 397 . . . . . . 1 201 102 312 338 514 777 491 584 188 . . Legs 2249 | 43 130 . . . . . 24 135 83 691 1115 28 . . . . . . . . . . Wheels 834 | . . . . 687 67 52 28 . . . . . . . . . . . . . . . Hover . | . . . . . . . . . . . . . . . . . . . . . . . Flight 19 | . . . . . . . . . . . . . . . . . . . . . 19 . Fastest Speed 40 | 50 120 160 163 210 80 80 95 122 120 118 110 120 160 160 160 160 160 162 162 50 40 50 Average Speed 168 | 107 158 206 183 233 145 80 119 129 121 118 120 155 160 161 167 160 175 236 163 139 51 69 Slowest Speed 320 | 120 190 240 246 312 225 80 200 130 122 120 240 160 160 240 240 160 245 245 243 320 200 200 Overloaded Moves . | . . . . . . . . . . . . . . . . . . . . . . . Propulsion Burnouts . | . . . . . . . . . . . . . . . . . . . . . . . Robots Hopped 3 | . . . . . . . . . . . . . . . . . . . . . 3 . Cave-ins Triggered . | . . . . . . . . . . . . . . . . . . . . . . . Exploration Rate (%) 46 | 4 94 62 61 29 72 2 43 5 91 23 96 80 84 25 9 63 68 75 68 7 7 12 Regions Visited 22 Branch Regions 10 Pre-discovered Areas 1 | . . . . . . . . . . . . . . . . . . . 1 . . . Known Exits Taken 8 | . . . . . . 1 . . . 1 . . . . 1 . 1 1 1 1 1 . Unknown Exits Taken 9 | 1 1 1 1 . . . . . . . 1 1 1 1 . 1 . . . . . . Scrap Searched 6 | . . 1 . . . . . . . . . . . . . 2 2 . 1 . . . Spaces Dug 6 | . . . . . . . . . . 1 3 . . . . . . . . 2 . . Terrain Destroyed 531 | . 26 28 66 . . . . 22 . 77 26 . 2 153 78 16 20 3 11 3 . . Melee . | . . . . . . . . . . . . . . . . . . . . . . . Projectile 134 | . 3 2 6 . . . . . . 9 26 . 2 9 24 16 20 3 11 3 . . AOE 397 | . 23 26 60 . . . . 22 . 68 . . . 144 54 . . . . . . . Terrain Rammed . | . . . . . . . . . . . . . . . . . . . . . . . Walls Destroyed . | . . . . . . . . . . . . . . . . . . . . . . . Machines Disabled . | . . . . . . . . . . . . . . . . . . . . . . . Actions | -11 -10 -10 -8 -7 -7 -7 -7 -6 -6 -6 -6 -6 -6 -6 -5 -5 -5 -5 -4 -4 -3 -3 --------- Run | Yrd Mat Sub Mat Fac Was Fac DSF Fac Was Fac Ext Cet Arc Hub Fac Upp Upp War Pro Fac Res Tes Total 11003 | 65 773 1033 902 1283 67 53 68 149 82 784 1390 347 114 372 442 552 874 538 639 265 159 52 Wait 344 | . 15 9 29 44 . 1 2 . . 12 55 91 . 6 38 5 9 . 21 6 . 1 Move 9475 | 51 680 962 735 1084 66 51 51 135 82 690 1115 228 101 311 337 513 776 490 583 244 144 46 Hop 3 | . . . . . . . . . . . . . . . . . . . . . 3 . Pick Up 165 | 5 12 9 14 22 . . 2 2 . 16 24 4 3 16 5 4 14 5 5 3 . . Fast Attach 71 | 7 3 . 4 5 . . 7 3 . 10 16 3 . 1 3 1 2 2 1 1 2 . Attach 75 | . . 3 5 12 1 1 1 1 . 3 20 3 . 4 3 3 9 . 3 2 . 1 Detach 8 | . 2 . . 1 . . . . . . . 2 . . . 2 1 . . . . . Swap 69 | . 8 1 11 10 . . . . . 3 10 1 . 3 3 5 4 7 1 1 1 . Drop 100 | . 13 1 9 9 . . 1 1 . 11 11 10 3 5 2 2 8 7 3 3 1 . Fire 609 | 2 37 48 94 90 . . 4 7 . 39 111 5 7 13 50 17 49 6 22 3 4 1 Melee . | . . . . . . . . . . . . . . . . . . . . . . . Ram 9 | . . . . . . . . . . . . . . . . . . . . 2 4 3 Kick . | . . . . . . . . . . . . . . . . . . . . . . . Crush 24 | . 3 . 1 6 . . . . . . . . . 13 1 . . . . . . . Escape Stasis . | . . . . . . . . . . . . . . . . . . . . . . . Rewire 49 | . . . . . . . . . . . 28 . . . . . . 21 . . . . Trap 2 | . . . . . . . . . . . . . . . . . 2 . . . . . Miscellaneous . | . . . . . . . . . . . . . . . . . . . . . . . Route ------- -11/Scrapyard -10/Materials (discovered 5 exits: [*Mat x3] / [*Min] / *Sub) -10/Subcaves (discovered 2 exits: *Mat x2) -8/Materials -7/Factory -7/Waste -7/Factory -7/DSF -6/Factory -6/Waste -6/Factory (discovered 4 exits: Low x2 / *Ext x2) -6/Extension (discovered 3 exits: *Fac x2 / *Cet) -6/Cetus (discovered 2 exits: *Fac / *Arc) -6/Archives (discovered 2 exits: *Fac / *Hub) -6/Hub_04(d) -5/Factory (discovered 2 exits: *Upp x2) -5/Upper Caves -5/Upper Caves -5/Warlord -4/Proximity Caves -4/Factory (discovered 2 exits: *Res x2) -3/Research (discovered 2 exits: Res / *Tes) -3/Testing History --------- Turn | Location | Event 5 | -11/Scrapyard | Discovered new exit (range 14) 78 | -11/Scrapyard | Entered Materials 302 | -10/Materials | Discovered new exit (range 14) 316 | -10/Materials | Build established: Mutant 574 | -10/Materials | Discovered new exit (range 16) 766 | -10/Materials | Discovered new exit (range 11) 1120 | -10/Materials | Discovered new exit (range 8) 1232 | -10/Materials | Discovered new exit (range 13) 1316 | -10/Materials | Entered Subcaves 1339 | -10/Subcaves | Discovered new exit (range 16) 1549 | -10/Subcaves | Shifting Twisted Machinery released Sub. Beam Cannon 1599 | -10/Subcaves | A swath of the cavern ceiling suddenly collapsed 1667 | -10/Subcaves | Shifting Twisted Machinery released Mak. Hacking Suite 2228 | -10/Subcaves | Core integrity fell below 50% 2732 | -10/Subcaves | Visited 4L-MR0's lab 2754 | -10/Subcaves | Found Gun Armor 2875 | -10/Subcaves | Learned Materials trap positions 3054 | -10/Subcaves | Shifting Twisted Machinery released Sub. Beam Cannon 3096 | -10/Subcaves | Learned Materials stockpile data 3409 | -10/Subcaves | Discovered new exit (range 14) 3447 | -10/Subcaves | Entered Materials 3447 | -8/Materials | Evolved 4 slots: Propulsion x2, Utility x2 3448 | -8/Materials | Loaded intel: 13 trap records 4541 | -8/Materials | Discovered new exit (range 16) 5047 | -8/Materials | First assault squad dispatched 5124 | -8/Materials | Entered Factory 5124 | -7/Factory | Evolved 2 slots: Utility x2 5387 | -7/Factory | Discovered new exit (range 15) 5480 | -7/Factory | Attached Gun Armor, gained temporary slots: Weapon x2 5646 | -7/Factory | Identified exit to Factory 5781 | -7/Factory | Build established: Gunner 5913 | -7/Factory | Cargo convoy interrupted 5970 | -7/Factory | Fabricated Imp. System Shield (x1) 6053 | -7/Factory | Garrison activated, responded to threat 7225 | -7/Factory | Found Prototype Processor 7527 | -7/Factory | Repaired Adv. Treads 7586 | -7/Factory | Build established: Tank 8059 | -7/Factory | Sucked down chute 8059 | -7/Factory | Entered Waste 8074 | -7/Waste | EMP discharged 8074 | -7/Waste | System corruption reached 10% 8075 | -7/Waste | Spotted C-40 Crusher 8088 | -7/Waste | Spotted C-40 Crusher 8100 | -7/Waste | Crushed by Compactor (1 part destroyed, 2 dropped) 8126 | -7/Waste | Spotted C-40 Crusher 8128 | -7/Waste | Spotted C-40 Crusher 8136 | -7/Waste | Spotted C-40 Crusher 8139 | -7/Waste | Crushed by Compactor (1 part destroyed, 1 dropped) 8143 | -7/Waste | Crushed by Compactor (1 part destroyed, 1 dropped) 8144 | -7/Waste | Discovered new exit (range 16) 8149 | -7/Waste | Crushed by Compactor (1 part destroyed, 1 dropped) 8157 | -7/Waste | Entered Factory 8180 | -7/Factory | Lost 4 parts (1p1n2u) 8200 | -7/Factory | Identified exit to DSF 8200 | -7/Factory | Entered DSF 8228 | -7/DSF | Discovered exit to Factory (range 13) 8242 | -7/DSF | Additional patrols routed to DSF 8257 | -7/DSF | Core integrity fell below 50% 8289 | -7/DSF | Entered Factory 8289 | -6/Factory | Evolved 2 slots: Propulsion x1, Weapon x1 8360 | -6/Factory | Found Prototype Launcher 8423 | -6/Factory | Build established: Mutant 8494 | -6/Factory | Sucked down chute 8494 | -6/Factory | Entered Waste 8509 | -6/Waste | EMP discharged 8509 | -6/Waste | Spotted C-40 Crusher 8520 | -6/Waste | Spotted C-40 Crusher 8520 | -6/Waste | Spotted C-40 Crusher 8520 | -6/Waste | Spotted C-40 Crusher 8559 | -6/Waste | Spotted C-40 Crusher 8566 | -6/Waste | Spotted C-40 Crusher 8571 | -6/Waste | Discovered new exit (range 15) 8579 | -6/Waste | Crushed by Compactor (1 part destroyed, 1 dropped) 8582 | -6/Waste | Crushed by Compactor (1 part destroyed, 2 dropped) 8594 | -6/Waste | Entered Factory 8684 | -6/Factory | Identified Scatter Rocket Array 9105 | -6/Factory | Spotted B-75 Beast 9306 | -6/Factory | Identified exit to Lower Caves 9306 | -6/Factory | Identified exit to Extension 9396 | -6/Factory | Build established: Scavenger-Gunner 9575 | -6/Factory | Entered Extension 9816 | -6/Extension | Lost 5 parts (2n1u2w) 9900 | -6/Extension | Disrupted transfer network 9928 | -6/Extension | Rescued a captive Derelict 10055 | -6/Extension | Lost 3 parts (1n2u) 10246 | -6/Extension | Lost 4 parts (3n1w) 10257 | -6/Extension | Destroyed 7 combat bots 10322 | -6/Extension | Spotted B-75 Beast 10330 | -6/Extension | Rescued a captive Derelict 10330 | -6/Extension | Rescued a captive Derelict 10634 | -6/Extension | Destroyed B-75 Beast 10648 | -6/Extension | Spotted B-75 Beast 10658 | -6/Extension | Lost 3 parts (1u2w) 10666 | -6/Extension | Core integrity fell below 50% 10681 | -6/Extension | Destroyed B-75 Beast 10707 | -6/Extension | Lost 4 parts (1p2n1w) 10737 | -6/Extension | Discovered new exit (range 3) 10833 | -6/Extension | Lost 3 parts (2n1w) 10943 | -6/Extension | Rescued a captive Derelict 10945 | -6/Extension | Rescued a captive Derelict 10972 | -6/Extension | Rescued A7 11106 | -6/Extension | Rescued a captive Derelict 11412 | -6/Extension | Discovered new exit (range 15) 11414 | -6/Extension | Discovered new exit (range 15) 11442 | -6/Extension | Entered Cetus 11442 | -6/Cetus | Accompanied by 7 allies (A7) 11447 | -6/Cetus | Acquired a Cetus Manufacturing Module code from A7 11459 | -6/Cetus | Spotted Cetus Guard 11459 | -6/Cetus | Spotted Cetus Guard 11459 | -6/Cetus | Spotted Cetus Guard 11465 | -6/Cetus | Destroyed Cetus Guard 11465 | -6/Cetus | Spotted Cetus Guard 11466 | -6/Cetus | Allies destroyed Cetus Guard 11476 | -6/Cetus | Allies destroyed Cetus Guard 11490 | -6/Cetus | Allies destroyed Cetus Guard 11519 | -6/Cetus | Lost 4 allies 11589 | -6/Cetus | Discovered new exit (range 16) 11724 | -6/Cetus | Build established: Scavenger-Tank 11757 | -6/Cetus | Started Cetus Manufacturing Module 11768 | -6/Cetus | Escorted A7 to Cetus Mainframe 11782 | -6/Cetus | Manufactured an Enhanced Grunt 11805 | -6/Cetus | Discovered new exit (range 15) 11807 | -6/Cetus | Manufactured an Enhanced Grunt 11832 | -6/Cetus | Manufactured an Enhanced Grunt 11857 | -6/Cetus | Manufactured an Enhanced Grunt 11882 | -6/Cetus | Manufactured an Enhanced Grunt 11922 | -6/Cetus | Entered Archives 11922 | -6/Archives | Accompanied by 8 allies (A7) 11927 | -6/Archives | Received a hacking code to weaken MAIN.C 11990 | -6/Archives | Discovered new exit (range 16) 11999 | -6/Archives | Unable to access archive contents 12002 | -6/Archives | Discovered new exit (range 16) 12015 | -6/Archives | Unable to access archive contents 12111 | -6/Archives | Entered Hub_04(d) 12111 | -6/Hub_04(d) | Accompanied by 7 allies 12187 | -6/Hub_04(d) | Garrison activated, responded to threat 12231 | -6/Hub_04(d) | Discovered new exit (range 6) 12648 | -6/Hub_04(d) | Network Hub disabled 12697 | -6/Hub_04(d) | System corruption reached 10% 12708 | -6/Hub_04(d) | Entered Factory 12708 | -5/Factory | Evolved 2 slots: Power x1, Utility x1 12984 | -5/Factory | System corruption reached 10% 13240 | -5/Factory | Identified exit to Upper Caves 13308 | -5/Factory | First assault squad dispatched 13488 | -5/Factory | Entered Upper Caves 13790 | -5/Upper Caves | Found Alien Artifact 13791 | -5/Upper Caves | Identified Dimensional Node Initializer 13791 | -5/Upper Caves | Initialized slip node 14208 | -5/Upper Caves | Encountered a Warlord checkpoint 14323 | -5/Upper Caves | Learned Factory trap positions 14330 | -5/Upper Caves | Discovered new exit (range 7) 14381 | -5/Upper Caves | Entered another Upper Caves area 14763 | -5/Upper Caves | Attracted the attention of an 0b10 base 14869 | -5/Upper Caves | Lost 7 parts (2p2n2u1w) 14870 | -5/Upper Caves | Destroyed 11 combat bots 14933 | -5/Upper Caves | Learned location of 1 exit from Proximity Caves 14933 | -5/Upper Caves | Learned 8 Factory zone layouts 14933 | -5/Upper Caves | Learned Extension trap positions 14933 | -5/Upper Caves | Learned Factory security intel 14933 | -5/Upper Caves | Learned Factory garrison access intel 14981 | -5/Upper Caves | Learned Factory terminal intel 15042 | -5/Upper Caves | Attracted the attention of an 0b10 checkpoint 15371 | -5/Upper Caves | Build established: Scavenger-Skirmisher 15929 | -5/Upper Caves | Discovered new exit (range 5) 15937 | -5/Upper Caves | Identified exit to Warlord 15939 | -5/Upper Caves | Entered Warlord 16023 | -5/Warlord | System corruption cleaned by Quarantine Array 16636 | -5/Warlord | Met Warlord 16661 | -5/Warlord | Warlord's base attacked by MAIN.C 16835 | -5/Warlord | Found Prototype Energy Cannon 17010 | -5/Warlord | Identified Vortex Driver 17011 | -5/Warlord | Warlord forces counterattacked 17043 | -5/Warlord | Spotted Striker 17102 | -5/Warlord | Lost 12 allies 17146 | -5/Warlord | Discovered new exit (range 9) 17159 | -5/Warlord | Identified exit to Proximity Caves 17160 | -5/Warlord | Entered Proximity Caves 17160 | -4/Proximity Caves | Accompanied by 1 ally 17161 | -4/Proximity Caves | Identified exit to Factory 17183 | -4/Proximity Caves | Learned 12 Research zone layouts 17198 | -4/Proximity Caves | Attracted the attention of an 0b10 checkpoint 17352 | -4/Proximity Caves | Build established: Scavenger-Tank 17414 | -4/Proximity Caves | Spotted B-86 Titan 18024 | -4/Proximity Caves | Attracted the attention of an 0b10 base 18085 | -4/Proximity Caves | Learned 6 Lower Caves zone layouts 18085 | -4/Proximity Caves | Learned Extension security intel 18210 | -4/Proximity Caves | Entered Factory 18210 | -4/Factory | Evolved 2 slots: Propulsion x1, Utility x1 18211 | -4/Factory | Identified exit to Research 18212 | -4/Factory | Loaded intel: 124 trap records 18214 | -4/Factory | Loaded intel: 26 terminal locations 18215 | -4/Factory | Loaded intel: 4 garrison access locations 18305 | -4/Factory | Discovered exit to Research (range 16) 18527 | -4/Factory | Spotted B-86 Titan 18542 | -4/Factory | Released all parts (11) 18572 | -4/Factory | Lost 6 parts (4n1u1w) 18577 | -4/Factory | Entered Research 18577 | -3/Research | Evolved 2 slots: Utility x1, Weapon x1 18578 | -3/Research | Identified exit to Research 18578 | -3/Research | Identified exit to Testing 18596 | -3/Research | Spotted B-86 Titan 18661 | -3/Research | Core integrity fell below 50% 18671 | -3/Research | Core integrity fell below 20% 18671 | -3/Research | Entered Testing 18682 | -3/Testing | Assembled infested ambush trap array 18712 | -3/Testing | Destroyed by as-43406 with Assembled P-torch Last Messages --------------- 18682_ Triggered Ambush Trap. 18682_ Disabled E-15 Imp is pushed from a hatch in the floor. 18682_ Disabled B-74 Champion is pushed from a hatch in the floor. 18682_ Disabled S-43 Plague is pushed from a hatch in the floor. 18682_ as-28869 emerges from a hatch in the floor. 18682_ as-43406 emerges from a hatch in the floor. 18682_ as-35978 emerges from a hatch in the floor. 18682_ ALERT: Infestation has breached Complex 0b10, dispatching Demolisher response squad. 18682_ E-15 Imp destroyed. 18688_ K-01 Serf destroyed. 18690_ ALERT: Hostile activity reported, dispatching reinforcements to area. 18693_ Reinforced Shell breached. 18703_ Slammed into as-28869. 18705_ Slammed into as-43406. 18712_ Hvy. Proton Cannon destroyed. Map ----- +----------------------------------------------------+ | | | | | | | | | | | | | ?????????????????????????????????????????????????? | | ?????????????????????????????????????????????????? | | ?????????????????????????????????????????????????? | | ?????????????????????????????????????????????????? | | ?????????????????????????????????????????????????? | | ?????????????????????????????????????????????????? | | ?????????????????????????????????????????????????? | | ????????????????########?????????????????????????? | | ????????????????? ?????????????????????????? | | ????????????????? #????????????????????????? | | ?????????????????? +????????????????????????? | | ??????????????????? #????????????????????????? | | ???????????????????# #????????????????????????? | | ???????????????????# #????????????????????????? | | ???????????????????# #????????????????????????? | | ##?????????????????# #????????????????????????? | | ????????????????# #????????????????????????? | | ????????????????# ########?????????????????? | | """?###########???# + """""#?????????????????? | | """?# # ??# #@"""""#?????????????????? | | """ # # ??# # " "#?????????????????? | | # # ?# # a""##?????????????????? | | + # ?# # a &#??????????????????? | | # # ! # # ""###??????????????????? | | ###### # # #####????????????????????? | | ?# # + #????????????????????????? | | ""?# # #! #????????????????????????? | | ! """# # #% #????????????????????????? | | """# ##########= ###T"####????????????????? | | + =%! ?????????????? | | """# =^ ?????????????? | | """# ?????????????? | | ""?# ?????????????? | | ?############### ###+#######??????????????? | | ###????????????????# #????????????????????????? | | ???????????????????# #????????????????????????? | | ???????????????????+ #????????????????????????? | | ???????????????????# #????????????????????????? | | ???????????????????# #????????????????????????? | | ???????????????????# #????????????????????????? | | ???????????????????# #????????????????????????? | | ???????????????????? #????????????????????????? | | ???????????????????? #????????????????????????? | | ???????????????????? ! #????????????????????????? | +----------------------------------------------------+ Best States ------------- Heat Dissipation 69 Coolant Potential 65 Energy Generation 38 Energy Capacity 560 Matter Stores 300 Matter Capacity 300 Sight Range 16 Robot Scan Range 16 Terrain Scan Range 16 Terrain Scan Density 10 Armor Coverage 450 Resistance: KI 25 Weapon Cycling 15 Evasion (%) 62 Targeting Accuracy 8 Target Analysis 6 Core Analysis 6 Recoil Reduction 6 Offensive Hacking 12 Defensive Hacking 22 Item Schematics ----------------- Huge Storage Unit | -10/Materials | Hacked Arm. Treads | -8/Materials | Scanalyzed Hvy. Armor Plating | -8/Materials | Hacked Rocket Launcher | -7/Factory | Scanalyzed Hacking Suite | -7/Factory | Scanalyzed Adv. Treads | -7/Factory | Scanalyzed Flak Gun | -6/Factory | Scanalyzed Scatter Rocket Array | -6/Factory | Scanalyzed Arm. Leg | -6/Extension | Hacked Lrn. Missile Launcher | -6/Extension | Hacked KE Penetrator | -6/Hub_04(d) | Hacked Imp. Hardlight Generator | -6/Hub_04(d) | Hacked Adv. Cooling System | -5/Factory | Hacked Robot Schematics ------------------ L-41 Fighter | -6/Factory | Hacked Fabricated ------------ Imp. System Shield | x1 | -7/Factory | Preloaded Alien Tech Used ----------------- Dimensional Node Initializer Achievements -------------- Below Collateral Damage I Spy Main Advantage Project G-00 Streaker Challenges ------------ None Game ------ Seed MyomerEncryptedAutogun Manual? 0 Play Time 02:52:11 Cumulative 64.6 hours Start 2024.05.23 @ 20:38:41 End 2024.06.14 @ 20:45:57 Sessions 9 Manual Loads 0 Difficulty Rogue Special Mode None Game No. 83 Rogue 83 Adventurer 0 Explorer 0 Win Type - Total 1 Types 1/0/0/0/0/0/0/0/0 Lore% 36 Gallery% 46 Achievement% 40 Wizard Run 0 Options --------- Layout 1 ASCII 0 Keyboard 0 Movement Mouse Keybinds 0 Fullscreen 1 Font 16/SmallcapsGlow Map View 55x38 Zoom Use 0% Tactical HUD 1 Map Filters NONE Filters NONE Steam 1 RUN: 98cb6fcc-9c6b-496d-9220-e3d750b03b5a